fUSD/lending_fUSD_20250414
["ID","MTS","AMOUNT","RATE_DAILY","PERIOD"]
[357979814,1744641784820,-500.0,0.00054794,30]
[357979815,1744641784848,-500.0,0.00054794,30]
[357979816,1744641784876,-500.0,0.00054794,30]
[357979817,1744641784902,-500.0,0.00054794,30]
[357979818,1744641784929,-500.0,0.00054794,30]
[357979819,1744641784958,-500.0,0.00054794,30]
[357979820,1744641784986,-500.0,0.00054794,30]
[357979821,1744641785014,-500.0,0.00054794,30]
[357979822,1744641785042,-500.0,0.00054794,30]
[357979823,1744641785071,-594.51965109,0.00054794,30]
[357979824,1744641785098,-250.65818919,0.00054794,30]
[357979825,1744641785126,-150.0,0.00054794,30]
[357979826,1744641785153,-500.0,0.00054794,30]
[357979827,1744641785181,-500.0,0.00054794,30]
[357979828,1744641785215,-500.0,0.00054794,30]
[357979829,1744641785244,-500.0,0.00054794,30]
[357979830,1744641785273,-500.0,0.00054794,30]
[357979831,1744641785301,-500.0,0.00054794,30]
[357979832,1744641785328,-500.0,0.00054794,30]
[357979833,1744641785355,-500.0,0.00054794,30]
[357979834,1744641785381,-500.0,0.00054794,30]
[357979835,1744641785408,-500.0,0.00054794,30]
[357979836,1744641785434,-500.0,0.00054794,30]
[357979837,1744641785463,-500.0,0.00054794,30]
[357979838,1744641785490,-500.0,0.00054794,30]
[357979839,1744641785518,-500.0,0.00054794,30]
[357979840,1744641785545,-500.0,0.00054794,30]
[357979841,1744641785573,-500.0,0.00054794,30]
[357979842,1744641785600,-405.29345881,0.00054794,30]
[357979843,1744641785627,-150.0,0.00054794,30]
[357979844,1744641785655,-150.0,0.00054794,30]
[357979845,1744641785682,-150.0,0.00054794,30]
[357979846,1744641785709,-150.0,0.00054794,30]
[357979847,1744641785736,-248.9216775,0.00054794,30]
[357979848,1744641785763,-522.0,0.00054794,30]
[357979849,1744641785790,-522.0,0.00054794,30]
[357979850,1744641785817,-522.0,0.00054794,30]
[357979851,1744641785844,-522.0,0.00054794,30]
[357979852,1744641785871,-522.0,0.00054794,30]
[357979853,1744641785898,-522.0,0.00054794,30]
[357979854,1744641785925,-522.0,0.00054794,30]
[357979855,1744641785952,-522.0,0.00054794,30]
[357979856,1744641785979,-522.0,0.00054794,30]
[357979857,1744641786006,-522.0,0.00054794,30]
[357979858,1744641786032,-522.0,0.00054794,30]
[357979859,1744641786061,-522.0,0.00054794,30]
[357979860,1744641786087,-522.0,0.00054794,30]
[357979861,1744641786115,-522.0,0.00054794,30]
[357979862,1744641786142,-522.0,0.00054794,30]
[357979863,1744641786169,-522.0,0.00054794,30]
[357979864,1744641786197,-522.0,0.00054794,30]
[357979865,1744641786229,-522.0,0.00054794,30]
[357979866,1744641786257,-522.0,0.00054794,30]
[357979867,1744641786287,-522.0,0.00054794,30]
[357979868,1744641786315,-522.0,0.00054794,30]
[357979869,1744641786342,-522.0,0.00054794,30]
[357979870,1744641786370,-522.0,0.00054794,30]
[357979871,1744641786397,-531.06107809,0.00054794,30]
[357979872,1744641786424,-500.0,0.00054794,30]
[357979873,1744641786454,-500.0,0.00054794,30]
[357979874,1744641786482,-500.0,0.00054794,30]
[357979875,1744641786509,-500.0,0.00054794,30]
[357979876,1744641786536,-156.48146289,0.00054794,30]
[357979877,1744641786563,-4000.0,0.00054795,30]
[357979878,1744641786590,-374.14691467,0.00054795,120]
[357979879,1744641786616,-151.0,0.00054877,120]
[357979880,1744641786641,-1784.0,0.000549,120]
[357979881,1744641786668,-1000.0,0.00054999,120]
[357979882,1744641786697,-50000.0,0.00055,55]
[357979883,1744641786729,-50000.0,0.00055,65]
[357979884,1744641786758,-723.50162106,0.00055,120]
[357979885,1744641786786,-1000.0,0.00055,120]
[357979886,1744641786814,-53945.70042879,0.00055,30]
[357979887,1744641786842,-157.0,0.00055,30]
[357979888,1744641786873,-1000000.0,0.00055,120]
[357979889,1744641786904,-808048.77595404,0.00055,120]
[357979890,1744641790837,-1000000.0,0.00053,120]
[357979891,1744641790867,-1000000.0,0.00053,120]
[357979892,1744641790898,-1000000.0,0.00053,120]
[357979893,1744641790929,-1000000.0,0.00054,120]
[357979894,1744641790959,-1000000.0,0.00054,120]
[357979895,1744641790991,-1000000.0,0.00054,120]
[357979896,1744641801083,-5558.0,0.000506,120]
[357979897,1744641801114,-151.0,0.00052,120]
[357979898,1744641801146,-1000000.0,0.00054,120]
[357979899,1744641801177,-1039.33,0.00054794,120]
[357979900,1744641801208,-1039.33,0.00054794,120]
[357979901,1744641801241,-1039.33,0.00054794,120]
[357979902,1744641801272,-1039.33,0.00054794,120]
[357979903,1744641801302,-1039.33,0.00054794,120]
[357979904,1744641801330,-1039.33,0.00054794,120]
[357979905,1744641801358,-1039.33,0.00054794,120]
[357979906,1744641801385,-1039.33,0.00054794,120]
[357979907,1744641801412,-1039.33,0.00054794,120]
[357979908,1744641801440,-1039.33,0.00054794,120]
[357979909,1744641801470,-1039.33,0.00054794,120]
[357979910,1744641801497,-1039.33,0.00054794,120]
[357979911,1744641801525,-1039.33,0.00054794,120]
[357979912,1744641801552,-1039.33,0.00054794,120]
[357979913,1744641801579,-1039.33,0.00054794,120]
[357979914,1744641801605,-1039.33,0.00054794,120]
[357979915,1744641801632,-1039.33,0.00054794,120]
[357979916,1744641801659,-1039.33,0.00054794,120]
[357979917,1744641801686,-1039.33,0.00054794,120]
[357979918,1744641801714,-1039.33,0.00054794,120]
[357979919,1744641801743,-1039.33,0.00054794,120]
[357979920,1744641801771,-1039.33,0.00054794,120]
[357979921,1744641801798,-1039.33,0.00054794,120]
[357979922,1744641801826,-1039.41,0.00054794,120]
[357979923,1744641801856,-191951.22404596,0.00055,120]
[357979924,1744641801884,-1405.0,0.00055,120]
[357979925,1744641801911,-2542.88636351,0.00055,120]
[357979926,1744641802113,-500.0,0.00055,120]
[357979927,1744641802143,-4266.0,0.00055,120]
[357979928,1744641802170,-150.78693347,0.00055,120]
[357979929,1744641802200,-2809.86008997,0.00055,30]
[357979930,1744641802228,-220.0,0.00055,120]
[357979931,1744641802256,-2044.95315445,0.00055,30]
[357979932,1744641802283,-34182.0,0.00055,50]
[357979933,1744641802308,-250.0,0.00055,30]
[357979934,1744641802336,-595807.22,0.00055,120]
[357979935,1744641802362,-150.0,0.00055,55]
[357979936,1744641802387,-504.33,0.00055068,36]
[357979937,1744641802414,-150.0,0.000552,120]
[357979938,1744641802441,-150.0,0.000552,120]
[357979939,1744641802468,-1102.89,0.00055342,120]
[357979940,1744641802495,-442.64218889,0.00055342,120]
[357979941,1744641802522,-433.69375869,0.00055342,120]
[357979942,1744641802549,-406.01148748,0.00055342,120]
[357979943,1744641802578,-1000000.0,0.000555,120]
[357979944,1744641802604,-4999.999999,0.000555,120]
[357979945,1744641802631,-5000.0,0.000555,120]
[357979946,1744641802660,-1000000.0,0.000555,120]
[357979947,1744641802687,-504.33,0.00055616,38]
[357979948,1744641802716,-2000.0,0.000557,90]
[357979949,1744641802742,-854.66,0.00055833,120]
[357979950,1744641802767,-576.85,0.00055833,120]
[357979951,1744641802794,-151.0,0.00055836,120]
[357979952,1744641802821,-1102.89,0.0005589,120]
[357979953,1744641802850,-50000.0,0.00056,56]
[357979954,1744641802879,-50000.0,0.00056,66]
[357979955,1744641802906,-5499.75070511,0.00056,120]
[357979956,1744641802934,-400.0,0.00056,120]
[357979957,1744641802962,-900.0,0.00056,120]
[357979958,1744641802993,-1000000.0,0.00056,120]
[357979959,1744641803023,-1000000.0,0.00056,120]
[357979960,1744641803053,-7888.02127347,0.00056,120]
[357979961,1744641806961,-2000000.0,0.00055,120]
[357979962,1744641806994,-992111.97872653,0.00056,120]
[357979963,1744641807027,-1000000.0,0.00056,120]
[357979964,1744641807056,-223.57533,0.00056,120]
[357979965,1744641807084,-4462.0,0.00056,120]
[357979966,1744641807113,-4463.0,0.00056,120]
[357979967,1744641807142,-1000.0,0.00056,120]
[357979968,1744641807170,-175.09727165,0.00056023,120]
[357979969,1744641807201,-504.33,0.00056164,40]
[357979970,1744641807232,-1068.0,0.00056228,120]
[357979971,1744641807261,-1102.89,0.00056438,120]
[357979972,1744641807292,-1000000.0,0.000565,120]
[357979973,1744641807329,-5000.0,0.000565,120]
[357979974,1744641807363,-3000.0,0.000565,120]
[357979975,1744641807391,-150.0,0.000567,120]
[357979976,1744641807420,-278.17589,0.000567,120]
[357979977,1744641807450,-504.33,0.00056712,42]
[357979978,1744641807481,-540.14,0.00056767,120]
[357979979,1744641807510,-1800.0,0.00056789,45]
[357979980,1744641807538,-151.0,0.00056795,120]
[357979981,1744641807565,-160.0,0.000568,120]
[357979982,1744641807593,-1102.89,0.00056986,120]
[357979983,1744641807624,-50000.0,0.00057,57]
[357979984,1744641807658,-50000.0,0.00057,67]
[357979985,1744641807688,-1000.0,0.00057,60]
[357979986,1744641807717,-1000.0,0.00057,120]
[357979987,1744641807748,-880202.59278182,0.00057,120]
[357979988,1744641812182,-1094.55229772,0.0005,120]
[357979989,1744641812214,-298.35664822,0.000553,30]
[357979990,1744641812243,-150.0,0.00056712,42]
[357979991,1744641812274,-119797.40721818,0.00057,120]
[357979992,1744641812304,-1000000.0,0.00057,120]
[357979993,1744641812332,-504.33,0.0005726,44]
[357979994,1744641812359,-223.57533,0.000573,120]
[357979995,1744641812388,-1000000.0,0.000575,120]
[357979996,1744641812414,-3000.0,0.000575,120]
[357979997,1744641812444,-500000.0,0.000575,120]
[357979998,1744641812470,-500.0,0.00057534,120]
[357979999,1744641812498,-1102.89,0.00057534,120]
[357980000,1744641812525,-1786.65,0.00057534,120]
[357980001,1744641812568,1000.0,0.00055,120]
[357980002,1744641812617,150.0,0.00056767,120]
[357980003,1744641812699,150.0,0.00056789,45]
[357980004,1744641812776,150.0,0.00056795,120]
[357980005,1744641812845,150.0,0.000549,120]
[357980006,1744641813186,150.0,0.000568,120]
[357980007,1744641813236,150.0,0.00056667,120]
[357980008,1744641813721,150.0,0.00056689,45]
[357980009,1744641814328,2663368.47,0.00056,120]
[357980010,1744641814364,150.0,0.00057,57]
[357980011,1744641814742,150.0,0.0005726,44]
[357980012,1744641814794,150.0,0.000548,120]
[357980013,1744641830851,250.0,0.00017277,2]
[357980014,1744641855399,178.44428199,0.00015326,2]
[357980015,1744641855425,1293.11571801,0.00015326,2]
[357980016,1744641875272,181.73,0.00013779,2]
[357980017,1744641931116,-150.0,0.00017509,2]
[357980018,1744641931142,-250.0,0.00017529,2]
[357980019,1744641931164,-161.79,0.0001755,2]
[357980020,1744641931187,-1471.56,0.0001759,2]
[357980021,1744641931208,-231.92276814,0.00017627,2]
[357980022,1744641931229,-239.58507057,0.00017627,2]
[357980023,1744641931254,-1509.4482,0.00017682,2]
[357980024,1744641931274,-2984.98,0.00017727,2]
[357980025,1744641931296,-250.0,0.00017727,2]
[357980026,1744641931317,-231.92276812,0.00017764,2]
[357980027,1744641931342,-300.0,0.00017781,2]
[357980028,1744641931363,-300.0,0.00017781,2]
[357980029,1744641931385,-2401.95,0.00017782,2]
[357980030,1744641931412,-176.33,0.00017838,2]
[357980031,1744641931432,-408.24,0.00017878,2]
[357980032,1744641931453,-1279.17,0.0001789,2]
[357980033,1744641931475,-2613.67,0.00017899,2]
[357980034,1744641931496,-170.75469203,0.00017899,2]
[357980035,1744641931517,-173.18927045,0.00017899,2]
[357980036,1744641931540,-293.0,0.00017899,2]
[357980037,1744641931559,-173.18927045,0.000179,2]
[357980038,1744641931583,-642.92068479,0.000179,2]
[357980039,1744641931603,-1500.82,0.000179,2]
[357980040,1744641931625,-231.92276812,0.000179,2]
[357980041,1744641931647,-11830.08723058,0.000179,2]
[357980042,1744641931668,-332.75612821,0.000179,2]
[357980043,1744641931690,-173.18927045,0.000179,2]
[357980044,1744641931712,-175.47194383,0.000179,2]
[357980045,1744641931736,-1175.29286474,0.000179,2]
[357980046,1744641931758,-218.3357035,0.000179,2]
[357980047,1744641931778,-500.0,0.00017973,2]
[357980048,1744641931799,-500.0,0.00017973,2]
[357980049,1744641931822,-500.0,0.00017973,2]
[357980050,1744641931843,-183.67514302,0.00017998,2]
[357980051,1744641931866,-174.28866954,0.00017998,2]
[357980052,1744641931887,-177.93974785,0.00017998,2]
[357980053,1744641931908,-500.0,0.00017998,2]
[357980054,1744641931930,-500.0,0.00017998,2]
[357980055,1744641931951,-500.0,0.00017998,2]
[357980056,1744641931973,-500.0,0.00017998,2]
[357980057,1744641931993,-625.51027741,0.00017998,2]
[357980058,1744641932014,-500.0,0.00017998,2]
[357980059,1744641932034,-500.0,0.00017998,2]
[357980060,1744641932055,-500.0,0.00017998,2]
[357980061,1744641932078,-500.0,0.00017998,2]
[357980062,1744641932100,-500.0,0.00017998,2]
[357980063,1744641932122,-500.0,0.00017998,2]
[357980064,1744641932143,-500.0,0.00017998,2]
[357980065,1744641932165,-500.0,0.00017998,2]
[357980066,1744641932186,-502.18362092,0.00017998,2]
[357980067,1744641932207,-500.0,0.00017998,2]
[357980068,1744641932228,-525.00882563,0.00017998,2]
[357980069,1744641932252,-503.87147587,0.00017998,2]
[357980070,1744641932274,-630.17841881,0.00017998,2]
[357980071,1744641932296,-500.0,0.00017998,2]
[357980072,1744641932317,-500.0,0.00017998,2]
[357980073,1744641932342,-500.0,0.00017998,2]
[357980074,1744641932364,-500.0,0.00017998,2]
[357980075,1744641932385,-500.0,0.00017998,2]
[357980076,1744641932406,-500.0,0.00017998,2]
[357980077,1744641932428,-500.0,0.00017998,2]
[357980078,1744641932448,-500.0,0.00017998,2]
[357980079,1744641932470,-500.0,0.00017998,2]
[357980080,1744641932492,-300.90561804,0.00017998,2]
[357980081,1744641932513,-500.0,0.00017999,2]
[357980082,1744641932535,-500.0,0.00017999,2]
[357980083,1744641932556,-500.0,0.00017999,2]
[357980084,1744641932579,-500.0,0.00017999,2]
[357980085,1744641932602,-500.0,0.00017999,2]
[357980086,1744641932623,-528.30326795,0.00017999,2]
[357980087,1744641932645,-500.0,0.00017999,2]
[357980088,1744641932666,-500.0,0.00017999,2]
[357980089,1744641932687,-500.0,0.00017999,2]
[357980090,1744641932707,-500.0,0.00017999,2]
[357980091,1744641932728,-39.60520429,0.00017999,2]
[357980092,1744642025083,-7223.11201037,0.00017899,2]
[357980093,1744642056990,-1549.91763496,0.00017899,2]
[357980094,1744642057013,-175.47194383,0.00017899,2]
[357980095,1744642057035,-27232.25778439,0.000179,2]
[357980096,1744642057058,-1760.46444872,0.000179,2]
[357980097,1744642057080,-500.0,0.00017973,2]
[357980098,1744642057115,-500.0,0.00017973,2]
[357980099,1744642057358,-152.16073384,0.00017973,2]
[357980100,1744642057382,-164.78,0.0001798,2]
[357980101,1744642057405,-500.0,0.00017998,2]
[357980102,1744642057427,-500.0,0.00017998,2]
[357980103,1744642057457,-500.0,0.00017998,2]
[357980104,1744642057481,-500.0,0.00017998,2]
[357980105,1744642057506,-500.0,0.00017998,2]
[357980106,1744642057530,-500.0,0.00017998,2]
[357980107,1744642057554,-500.0,0.00017998,2]
[357980108,1744642057578,-500.0,0.00017998,2]
[357980109,1744642057602,-612.498688,0.00017998,2]
[357980110,1744642057625,-500.0,0.00017998,2]
[357980111,1744642057648,-500.0,0.00017998,2]
[357980112,1744642057671,-500.0,0.00017998,2]
[357980113,1744642057693,-500.0,0.00017998,2]
[357980114,1744642057716,-500.0,0.00017998,2]
[357980115,1744642057740,-500.0,0.00017998,2]
[357980116,1744642057762,-500.0,0.00017998,2]
[357980117,1744642057785,-500.0,0.00017998,2]
[357980118,1744642057809,-500.0,0.00017998,2]
[357980119,1744642057831,-583.67568861,0.00017998,2]
[357980120,1744642057854,-500.0,0.00017998,2]
[357980121,1744642057879,-500.0,0.00017998,2]
[357980122,1744642057902,-500.0,0.00017998,2]
[357980123,1744642057923,-500.0,0.00017998,2]
[357980124,1744642057945,-525.5464208,0.00017998,2]
[357980125,1744642057969,-500.0,0.00017998,2]
[357980126,1744642057991,-500.0,0.00017998,2]
[357980127,1744642058016,-500.0,0.00017998,2]
[357980128,1744642058042,-500.0,0.00017998,2]
[357980129,1744642058066,-523.38362872,0.00017998,2]
[357980130,1744642058092,-503.51876802,0.00017998,2]
[357980131,1744642058115,-500.0,0.00017998,2]
[357980132,1744642058139,-500.0,0.00017998,2]
[357980133,1744642058164,-500.0,0.00017998,2]
[357980134,1744642058188,-500.0,0.00017998,2]
[357980135,1744642058214,-500.0,0.00017998,2]
[357980136,1744642058238,-500.0,0.00017998,2]
[357980137,1744642058261,-500.0,0.00017998,2]
[357980138,1744642058287,-500.0,0.00017998,2]
[357980139,1744642058310,-500.0,0.00017998,2]
[357980140,1744642058336,-500.0,0.00017998,2]
[357980141,1744642058361,-500.0,0.00017998,2]
[357980142,1744642058384,-500.0,0.00017998,2]
[357980143,1744642058408,-500.0,0.00017998,2]
[357980144,1744642058435,-500.0,0.00017998,2]
[357980145,1744642058461,-523.39168998,0.00017998,2]
[357980146,1744642058484,-508.55132731,0.00017998,2]
[357980147,1744642058507,-500.0,0.00017998,2]
[357980148,1744642058532,-500.0,0.00017998,2]
[357980149,1744642058555,-500.0,0.00017998,2]
[357980150,1744642058579,-179.46475067,0.00017998,2]
[357980151,1744642058604,-500.0,0.00017998,2]
[357980152,1744642058628,-500.0,0.00017998,2]
[357980153,1744642058652,-505.76951948,0.00017998,2]
[357980154,1744642058675,-500.0,0.00017998,2]
[357980155,1744642058699,-507.55823914,0.00017998,2]
[357980156,1744642058727,-506.73964992,0.00017998,2]
[357980157,1744642058750,-512.89105695,0.00017998,2]
[357980158,1744642058775,-500.0,0.00017998,2]
[357980159,1744642058799,-523.30088731,0.00017998,2]
[357980160,1744642058824,-500.0,0.00017998,2]
[357980161,1744642058847,-500.0,0.00017998,2]
[357980162,1744642058871,-500.0,0.00017998,2]
[357980163,1744642058894,-500.0,0.00017998,2]
[357980164,1744642058917,-500.0,0.00017998,2]
[357980165,1744642058940,-500.0,0.00017998,2]
[357980166,1744642058968,-500.0,0.00017998,2]
[357980167,1744642058991,-500.0,0.00017998,2]
[357980168,1744642059014,-572.38373552,0.00017998,2]
[357980169,1744642059037,-500.0,0.00017998,2]
[357980170,1744642059062,-500.0,0.00017998,2]
[357980171,1744642059084,-500.0,0.00017998,2]
[357980172,1744642059108,-500.0,0.00017998,2]
[357980173,1744642059132,-552.41949341,0.00017998,2]
[357980174,1744642059157,-500.0,0.00017998,2]
[357980175,1744642059181,-500.0,0.00017998,2]
[357980176,1744642059207,-500.0,0.00017998,2]
[357980177,1744642059232,-500.0,0.00017998,2]
[357980178,1744642059267,-500.0,0.00017998,2]
[357980179,1744642059305,-546.57989868,0.00017998,2]
[357980180,1744642059330,-500.0,0.00017998,2]
[357980181,1744642059355,-500.0,0.00017998,2]
[357980182,1744642059381,-500.0,0.00017998,2]
[357980183,1744642059407,-500.0,0.00017998,2]
[357980184,1744642059431,-500.0,0.00017998,2]
[357980185,1744642059457,-500.0,0.00017998,2]
[357980186,1744642059481,-559.12986258,0.00017998,2]
[357980187,1744642059507,-534.87155504,0.00017998,2]
[357980188,1744642059532,-500.0,0.00017998,2]
[357980189,1744642059557,-500.0,0.00017998,2]
[357980190,1744642059581,-500.0,0.00017998,2]
[357980191,1744642059605,-500.0,0.00017998,2]
[357980192,1744642059629,-500.0,0.00017998,2]
[357980193,1744642059654,-517.09260315,0.00017998,2]
[357980194,1744642059677,-500.0,0.00017998,2]
[357980195,1744642059702,-500.0,0.00017998,2]
[357980196,1744642059730,-500.0,0.00017998,2]
[357980197,1744642059757,-500.0,0.00017998,2]
[357980198,1744642059781,-220.18081712,0.00017998,2]
[357980199,1744642059806,-500.0,0.00017998,2]
[357980200,1744642059829,-500.0,0.00017998,2]
[357980201,1744642059855,-500.0,0.00017998,2]
[357980202,1744642059882,-500.0,0.00017998,2]
[357980203,1744642059905,-517.54488561,0.00017998,2]
[357980204,1744642059930,-500.0,0.00017998,2]
[357980205,1744642059954,-510.91868121,0.00017998,2]
[357980206,1744642059980,-500.0,0.00017998,2]
[357980207,1744642060004,-500.0,0.00017998,2]
[357980208,1744642060028,-561.01508226,0.00017998,2]
[357980209,1744642060052,-500.0,0.00017998,2]
[357980210,1744642060078,-512.41190506,0.00017998,2]
[357980211,1744642060103,-500.0,0.00017998,2]
[357980212,1744642060127,-500.0,0.00017998,2]
[357980213,1744642060150,-500.0,0.00017998,2]
[357980214,1744642060174,-500.0,0.00017998,2]
[357980215,1744642060426,-500.0,0.00017998,2]
[357980216,1744642060451,-500.0,0.00017998,2]
[357980217,1744642060478,-504.00611677,0.00017998,2]
[357980218,1744642060502,-500.0,0.00017998,2]
[357980219,1744642060526,-500.0,0.00017998,2]
[357980220,1744642060550,-500.0,0.00017998,2]
[357980221,1744642060580,-553.52918989,0.00017998,2]
[357980222,1744642060606,-500.0,0.00017998,2]
[357980223,1744642060631,-500.0,0.00017998,2]
[357980224,1744642060656,-500.0,0.00017998,2]
[357980225,1744642060679,-289.31093922,0.00017998,2]
[357980226,1744642060704,-500.0,0.00017998,2]
[357980227,1744642060728,-500.0,0.00017998,2]
[357980228,1744642060752,-500.0,0.00017998,2]
[357980229,1744642060776,-582.92330797,0.00017998,2]
[357980230,1744642060799,-514.33908658,0.00017998,2]
[357980231,1744642060822,-500.0,0.00017998,2]
[357980232,1744642060846,-500.0,0.00017998,2]
[357980233,1744642060868,-500.0,0.00017998,2]
[357980234,1744642060890,-500.0,0.00017998,2]
[357980235,1744642060914,-500.0,0.00017998,2]
[357980236,1744642060938,-500.0,0.00017998,2]
[357980237,1744642060963,-500.0,0.00017998,2]
[357980238,1744642060988,-500.0,0.00017998,2]
[357980239,1744642061011,-500.0,0.00017998,2]
[357980240,1744642061035,-572.69964693,0.00017998,2]
[357980241,1744642061061,-500.0,0.00017998,2]
[357980242,1744642061086,-500.0,0.00017998,2]
[357980243,1744642061108,-500.0,0.00017998,2]
[357980244,1744642061131,-500.0,0.00017998,2]
[357980245,1744642061154,-500.0,0.00017998,2]
[357980246,1744642061177,-500.0,0.00017998,2]
[357980247,1744642061202,-500.0,0.00017998,2]
[357980248,1744642061226,-500.0,0.00017998,2]
[357980249,1744642061250,-500.0,0.00017998,2]
[357980250,1744642061274,-500.0,0.00017998,2]
[357980251,1744642061303,-500.0,0.00017998,2]
[357980252,1744642061327,-500.0,0.00017998,2]
[357980253,1744642061351,-500.0,0.00017998,2]
[357980254,1744642061375,-532.51622162,0.00017998,2]
[357980255,1744642061410,-500.0,0.00017998,2]
[357980256,1744642061436,-500.0,0.00017998,2]
[357980257,1744642061463,-500.0,0.00017998,2]
[357980258,1744642061487,-500.0,0.00017998,2]
[357980259,1744642061511,-500.0,0.00017998,2]
[357980260,1744642061536,-548.18514943,0.00017998,2]
[357980261,1744642061560,-500.0,0.00017998,2]
[357980262,1744642061584,-500.0,0.00017998,2]
[357980263,1744642061608,-500.0,0.00017998,2]
[357980264,1744642061632,-500.0,0.00017998,2]
[357980265,1744642061656,-500.0,0.00017998,2]
[357980266,1744642061680,-392.4929483,0.00017998,2]
[357980267,1744642061703,-500.0,0.00017998,2]
[357980268,1744642061729,-511.63224883,0.00017998,2]
[357980269,1744642061754,-500.0,0.00017998,2]
[357980270,1744642061779,-546.71312247,0.00017998,2]
[357980271,1744642061802,-621.26754348,0.00017998,2]
[357980272,1744642061825,-500.0,0.00017998,2]
[357980273,1744642061849,-500.0,0.00017998,2]
[357980274,1744642061872,-500.0,0.00017998,2]
[357980275,1744642061896,-500.0,0.00017998,2]
[357980276,1744642061919,-500.0,0.00017998,2]
[357980277,1744642061942,-239.38752917,0.00017998,2]
[357980278,1744642061968,-500.0,0.00017998,2]
[357980279,1744642061992,-500.0,0.00017998,2]
[357980280,1744642062017,-500.0,0.00017998,2]
[357980281,1744642062041,-500.0,0.00017998,2]
[357980282,1744642062066,-500.0,0.00017998,2]
[357980283,1744642062090,-500.0,0.00017998,2]
[357980284,1744642062115,-500.0,0.00017998,2]
[357980285,1744642062139,-500.0,0.00017998,2]
[357980286,1744642062163,-500.0,0.00017998,2]
[357980287,1744642062188,-500.0,0.00017998,2]
[357980288,1744642062215,-500.0,0.00017998,2]
[357980289,1744642062241,-603.20280071,0.00017998,2]
[357980290,1744642062265,-500.0,0.00017998,2]
[357980291,1744642062291,-500.0,0.00017998,2]
[357980292,1744642062317,-500.0,0.00017998,2]
[357980293,1744642062342,-509.57045322,0.00017998,2]
[357980294,1744642062368,-500.0,0.00017998,2]
[357980295,1744642062392,-500.0,0.00017998,2]
[357980296,1744642062415,-500.0,0.00017998,2]
[357980297,1744642062439,-502.37394617,0.00017998,2]
[357980298,1744642062465,-500.0,0.00017998,2]
[357980299,1744642062489,-500.0,0.00017998,2]
[357980300,1744642062512,-500.0,0.00017998,2]
[357980301,1744642062536,-500.0,0.00017998,2]
[357980302,1744642062559,-500.0,0.00017998,2]
[357980303,1744642062584,-500.0,0.00017998,2]
[357980304,1744642062607,-500.0,0.00017998,2]
[357980305,1744642062631,-500.0,0.00017998,2]
[357980306,1744642062654,-500.0,0.00017998,2]
[357980307,1744642062676,-500.0,0.00017998,2]
[357980308,1744642062699,-500.0,0.00017998,2]
[357980309,1744642062722,-502.19776745,0.00017998,2]
[357980310,1744642062745,-500.0,0.00017998,2]
[357980311,1744642062769,-500.0,0.00017998,2]
[357980312,1744642062793,-500.0,0.00017998,2]
[357980313,1744642062816,-500.0,0.00017998,2]